bitfinex/quotes_SOLUSD_20250307
["timestamp","ask_amount","ask_price","bid_price","bid_amount"]
[1741389424192,0.033,138.95,138.94,163.1573]
[1741389424518,0.033,138.95,138.94,155.96]
[1741389425728,0.033,138.95,138.94,163.1573]
[1741389427538,0.033,138.95,138.94,215.54268449]
[1741389427890,0.033,138.95,138.94,163.1573]
[1741389428123,0.033,138.95,138.94,155.96]
[1741389428438,0.033,138.95,138.94,163.1573]
[1741389428810,0.033,138.95,138.94,155.96]
[1741389429133,0.033,138.95,138.94,163.1573]
[1741389430338,0.033,138.95,138.94,155.96]
[1741389430515,33.76873563,138.95,138.94,155.96]
[1741389431631,37.86326155,138.95,138.94,155.96]
[1741389432227,45.06006155,138.95,138.94,155.96]
[1741389432746,45.06006155,138.95,138.86,155.88]
[1741389432747,82.3,138.94,138.86,155.88]
[1741389432927,33.73573563,138.87,138.86,155.88]
[1741389433117,33.73573563,138.88,138.86,155.88]
[1741389433740,33.73573563,138.89,138.86,155.88]
[1741389434320,4.09452592,138.87,138.86,155.88]
[1741389435238,37.83026155,138.87,138.86,155.88]
[1741389435635,37.83026155,138.87,138.81,0.03]
[1741389435838,33.73573563,138.82,138.81,0.03]
[1741389436229,40.93923563,138.82,138.81,0.03]
[1741389436433,18.0065,138.84,138.81,0.03]
[1741389436434,7.2025,138.84,138.81,0.03]
[1741389436621,33.73573563,138.82,138.81,0.03]
[1741389436829,116.03573563,138.83,138.81,0.03]
[1741389437149,33.73573563,138.82,138.81,0.03]
[1741389438052,86.39452592,138.83,138.81,0.03]
[1741389438545,4.09452592,138.83,138.81,0.03]
[1741389438847,33.73573563,138.84,138.81,0.03]
[1741389439031,33.73573563,138.83,138.81,0.03]
[1741389439228,33.73573563,138.82,138.81,0.03]
[1741389439844,33.73573563,138.84,138.81,0.03]
[1741389440226,82.3,138.86,138.81,7.234]
[1741389440424,82.3,138.86,138.82,33.73573563]
[1741389440830,82.3,138.89,138.83,33.73573563]
[1741389441034,82.3,138.89,138.82,33.73573563]
[1741389441035,33.73573563,138.88,138.82,33.73573563]
[1741389441231,33.73573563,138.87,138.81,7.234]
[1741389441447,33.73573563,138.84,138.81,0.03]
[1741389441931,33.73573563,138.83,138.81,0.03]
[1741389442137,33.73573563,138.84,138.81,0.03]
[1741389443641,33.73573563,138.85,138.81,0.03]
[1741389446127,82.3,138.88,138.81,0.03]
[1741389446330,82.3,138.87,138.81,0.03]
[1741389446859,89.501,138.87,138.81,0.03]
[1741389447149,50.0,138.73,138.7,0.03]
[1741389447456,50.0,138.73,138.67,22.585374]
[1741389447457,33.73573563,138.71,138.67,3.05751099]
[1741389447751,83.73573563,138.68,138.66,18.20216057]
[1741389447925,50.0,138.68,138.66,18.20216057]
[1741389448337,33.73573563,138.67,138.66,18.20216057]
[1741389448941,40.94703563,138.67,138.66,18.20216057]
[1741389449451,50.0,138.66,138.56,155.98]
[1741389449628,50.0,138.64,138.56,155.98]
[1741389450027,33.73573563,138.64,138.57,33.73573563]
[1741389450349,8.16,138.65,138.56,163.1968]
[1741389450920,82.3,138.66,138.57,18.64964886]
[1741389451342,41.89573563,138.69,138.63,33.73573563]
[1741389451528,8.16,138.69,138.63,33.73573563]
[1741389451742,41.89573563,138.69,138.62,33.73573563]
[1741389451941,41.89573563,138.69,138.6,18.64964886]
[1741389451942,33.73573563,138.7,138.63,33.73573563]
[1741389452154,82.3,138.72,138.58,8.16]
[1741389452155,33.73573563,138.71,138.64,33.73573563]
[1741389452366,82.3,138.72,138.66,33.73573563]
[1741389452568,18.0134,138.79,138.61,18.64964886]
[1741389452569,82.3,138.79,138.71,33.73573563]
[1741389452860,116.03573563,138.79,138.72,33.73573563]
[1741389453063,116.03573563,138.79,138.73,33.73573563]
[1741389453254,82.3,138.79,138.74,33.73573563]
[1741389453964,33.73573563,138.82,138.76,33.73573563]
[1741389454134,33.73573563,138.82,138.75,33.73573563]
[1741389454535,33.73573563,138.81,138.75,33.73573563]
[1741389455236,33.73573563,138.81,138.75,33.61572016]
[1741389455237,33.61572016,138.81,138.75,33.61572016]
[1741389455436,33.61572016,138.81,138.74,40.82332016]
[1741389455760,33.61572016,138.82,138.76,33.61572016]
[1741389456138,50.42081974,138.82,138.75,50.42081974]
[1741389456540,50.42081974,138.79,138.73,50.42081974]
[1741389457235,50.42081974,138.8,138.74,7.2077]
[1741389457437,89.5031,138.83,138.75,50.42081974]
[1741389457438,50.42081974,138.81,138.75,50.42081974]
[1741389457637,50.42081974,138.82,138.75,50.42081974]
[1741389457880,50.42081974,138.82,138.76,50.42081974]
[1741389458171,50.42081974,138.82,138.74,25.227]
[1741389458469,50.42081974,138.85,138.78,50.42081974]
[1741389458774,50.42081974,138.84,138.78,206.50081974]
[1741389458991,50.42081974,138.87,138.81,50.42081974]
[1741389459155,50.42081974,138.87,138.78,156.08]
[1741389459156,82.3,138.88,138.83,50.42081974]
[1741389459475,50.42081974,138.89,138.83,50.42081974]
[1741389459678,50.42081974,138.89,138.82,57.62431974]
[1741389460184,50.42081974,138.88,138.82,57.62431974]
[1741389460481,50.42081974,138.86,138.8,50.42081974]
[1741389460650,50.42081974,138.85,138.79,57.62591974]
[1741389460846,50.42081974,138.83,138.79,7.2051]
[1741389461049,50.42081974,138.86,138.8,50.42081974]
[1741389461276,50.42081974,138.87,138.8,50.42081974]
[1741389461580,50.42081974,138.87,138.79,25.2179]
[1741389461581,50.42081974,138.87,138.81,50.42081974]
[1741389461776,50.42081974,138.88,138.82,50.42081974]
[1741389461979,50.42081974,138.9,138.84,50.42081974]
[1741389462153,50.42081974,138.9,138.83,50.42081974]
[1741389462473,50.42081974,138.91,138.85,50.42081974]
[1741389462848,50.42081974,138.91,138.84,50.42081974]
[1741389463054,50.42081974,138.9,138.84,50.42081974]
[1741389463457,50.42081974,138.88,138.83,15.3626]
[1741389463855,89.4979,138.93,138.84,50.42081974]
[1741389464048,50.42081974,138.91,138.84,50.42081974]
[1741389464473,50.42081974,138.91,138.85,50.42081974]
[1741389465095,132.72081974,138.93,138.87,50.42081974]
[1741389466481,50.42081974,138.92,138.86,68.42411974]
[1741389467086,82.3,138.93,138.87,50.42081974]
[1741389467285,132.72081974,138.93,138.87,50.42081974]
[1741389467782,50.42081974,138.91,138.88,7.2004]
[1741389468378,82.3,138.93,138.88,7.2004]
[1741389468597,50.42081974,138.92,138.88,7.2004]
[1741389469684,50.42081974,138.92,138.87,7.2009]
[1741389469880,132.72081974,138.93,138.87,7.2009]
[1741389470111,132.72081974,138.93,138.87,25.2033]
[1741389470291,132.72081974,138.93,138.87,75.62411974]
[1741389471185,50.42081974,138.92,138.87,25.2033]
[1741389471765,0.033,138.93,138.9,50.42081974]
[1741389472068,0.033,138.93,138.9,206.38081974]
[1741389472476,0.033,138.93,138.9,155.96]
[1741389473484,50.45381974,138.93,138.9,155.96]
[1741389473687,50.42081974,138.92,138.9,155.96]
[1741389474590,50.42081974,138.91,138.9,155.96]
[1741389475693,50.42081974,138.92,138.9,155.96]
[1741389476369,50.42081974,138.91,138.9,155.96]
[1741389476803,0.033,138.93,138.9,163.1594]
[1741389476971,0.033,138.93,138.8,52.42081974]
[1741389476972,100.42081974,138.91,138.82,155.94]
[1741389477174,50.42081974,138.87,138.82,155.94]
[1741389477373,50.38143428,138.88,138.82,155.94]
[1741389477600,50.38143428,138.87,138.82,155.94]
[1741389477778,50.38143428,138.87,138.83,7.203]
[1741389478091,50.38143428,138.87,138.82,163.1434]
[1741389478501,50.38143428,138.85,138.82,155.94]
[1741389478806,50.38143428,138.87,138.82,163.1434]
[1741389479093,1.0,138.83,138.82,163.1434]
[1741389479588,1.0,138.83,138.82,196.72928044]
[1741389480499,1.0,138.83,138.82,163.1434]
[1741389480886,1.0,138.83,138.82,155.94]
[1741389481996,34.58588044,138.83,138.82,155.94]
[1741389482569,41.78888044,138.83,138.82,155.94]
[1741389483191,41.78888044,138.83,138.75,7.2069]
[1741389483384,33.58588044,138.77,138.74,155.96]
[1741389483585,33.58588044,138.75,138.68,51.21868044]
[1741389483801,33.58588044,138.75,138.69,214.78198044]
[1741389483982,33.58588044,138.78,138.71,33.58588044]
[1741389484177,33.58588044,138.79,138.73,33.58588044]
[1741389484383,33.58588044,138.8,138.73,33.58588044]
[1741389485303,33.62318352,138.8,138.73,33.62318352]
[1741389485801,33.62318352,138.79,138.73,33.62318352]
[1741389485988,50.45414925,138.77,138.71,50.45414925]
[1741389486506,50.45414925,138.78,138.71,50.45414925]
[1741389486706,50.45414925,138.79,138.73,50.45414925]
[1741389487007,50.45414925,138.8,138.73,50.45414925]
[1741389487379,50.45414925,138.79,138.73,50.45414925]
[1741389487878,132.75414925,138.81,138.75,57.66134925]
[1741389488076,82.3,138.81,138.76,50.45414925]
[1741389488495,50.45414925,138.8,138.75,7.2072]
[1741389488797,50.45414925,138.78,138.75,7.2072]
[1741389489001,50.45414925,138.78,138.73,7.2077]
[1741389489396,50.45414925,138.79,138.73,25.2283]
[1741389490117,82.3,138.81,138.76,50.45414925]
[1741389490286,82.3,138.81,138.77,50.45414925]
[1741389490708,82.3,138.81,138.78,50.45414925]
[1741389490886,82.3,138.81,138.77,50.45414925]
[1741389491404,1.0,138.83,138.8,50.45414925]
[1741389491588,1.0,138.83,138.82,50.45414925]
[1741389491796,1.0,138.83,138.8,156.0]
[1741389492182,1.0,138.83,138.81,57.65814925]
[1741389492411,1.0,138.83,138.81,7.204]
[1741389492587,1.0,138.83,138.81,57.65814925]
[1741389493512,82.3,138.89,138.82,69.10379811]
[1741389493804,82.3,138.89,138.84,50.45414925]
[1741389494011,132.75414925,138.89,138.82,69.10379811]
[1741389494190,50.45414925,138.87,138.83,7.203]
[1741389494396,20.5017,138.86,138.7,47.6907]
[1741389494701,20.5017,138.86,138.68,161.8803]
[1741389494702,50.45414925,138.71,138.6,18.0368]
[1741389494883,50.45414925,138.67,138.61,7.2144]
[1741389495084,50.45414925,138.67,138.6,11.6427]
[1741389495310,50.45414925,138.69,138.64,7.2128]
[1741389495486,50.45414925,138.69,138.61,69.10379811]
[1741389495800,50.45414925,138.67,138.59,156.02]
[1741389495999,108.59414925,138.67,138.59,156.02]
[1741389496594,58.59414925,138.67,138.59,163.2354]
[1741389497107,58.59414925,138.67,138.59,213.68954925]
[1741389497291,50.45414925,138.68,138.61,50.45414925]
[1741389497996,58.59414925,138.69,138.62,50.45414925]
[1741389498202,50.45414925,138.68,138.61,50.45414925]
[1741389498409,50.45414925,138.68,138.62,7.2139]
[1741389498912,50.45414925,138.67,138.59,164.16]
[1741389499094,50.45414925,138.67,138.61,7.2144]
[1741389499296,50.45414925,138.68,138.61,57.66854925]
[1741389499713,50.45414925,138.68,138.62,50.45414925]
[1741389500015,50.45414925,138.7,138.63,50.48414925]
[1741389500192,50.45414925,138.72,138.65,50.45414925]
[1741389500384,50.45414925,138.71,138.64,50.45414925]
[1741389500903,50.45414925,138.7,138.63,50.48414925]
[1741389502509,50.45414925,138.71,138.66,7.2418]
[1741389504406,50.45414925,138.68,138.66,0.03]
[1741389504989,50.45414925,138.69,138.66,0.03]
[1741389505905,82.3,138.7,138.66,0.03]
[1741389506214,50.45414925,138.69,138.66,0.03]
[1741389506912,132.75414925,138.7,138.66,0.03]
[1741389507392,132.80938747,138.7,138.66,0.03]
[1741389509097,115.97055289,138.7,138.66,0.03]
[1741389510923,116.47524884,138.7,138.66,0.03]
[1741389511319,82.3,138.7,138.66,0.03]
[1741389511620,82.3,138.76,138.67,34.17524884]
[1741389511798,82.3,138.75,138.67,34.17524884]
[1741389511996,34.17524884,138.78,138.71,34.17524884]
[1741389512323,82.3,138.78,138.7,156.14]
[1741389512823,82.3,138.77,138.7,156.14]
[1741389513021,50.0,138.75,138.7,156.14]
[1741389513318,34.17524884,138.71,138.7,156.14]
[1741389513501,34.17524884,138.71,138.66,0.03]
[1741389513502,82.3,138.7,138.66,0.03]
[1741389513707,34.17524884,138.67,138.66,7.2418]
[1741389513922,34.17524884,138.67,138.66,0.03]
[1741389514096,34.17524884,138.68,138.66,7.2418]
[1741389514297,116.47524884,138.69,138.66,7.2418]
[1741389514522,82.3,138.69,138.66,7.2418]
[1741389514821,82.3,138.69,138.66,0.03]
[1741389515011,34.17524884,138.74,138.67,34.17524884]
[1741389515504,34.17524884,138.7,138.66,0.03]
[1741389515910,34.17524884,138.72,138.66,34.20524884]
[1741389516109,116.47524884,138.73,138.66,34.20524884]
[1741389516296,82.3,138.73,138.67,34.17524884]
[1741389516915,82.3,138.73,138.68,59.41314884]
[1741389517318,82.3,138.73,138.69,34.17524884]
[1741389517522,34.17524884,138.76,138.69,34.17524884]
[1741389518323,34.17524884,138.75,138.68,59.41314884]
[1741389518525,34.17524884,138.73,138.68,25.2379]
[1741389518715,34.17524884,138.74,138.68,25.2379]
[1741389518937,34.17524884,138.76,138.69,52.8248977]
[1741389519138,116.47524884,138.77,138.7,34.17524884]
[1741389519539,34.17524884,138.76,138.69,65.5528977]
[1741389520042,116.47524884,138.77,138.7,34.17524884]
[1741389520219,82.3,138.77,138.69,46.90324884]
[1741389520420,34.17524884,138.76,138.69,46.90324884]
[1741389520750,34.17524884,138.74,138.69,12.728]
[1741389521242,34.17524884,138.76,138.7,25.2343]
[1741389521629,34.17524884,138.75,138.7,7.2098]
[1741389522938,34.17524884,138.74,138.69,12.728]
[1741389523142,34.17524884,138.74,138.67,34.17524884]
[1741389523340,34.17524884,138.76,138.69,34.17524884]
[1741389523537,116.47524884,138.77,138.7,34.17524884]
[1741389523848,123.68134884,138.77,138.7,34.17524884]
[1741389524047,34.17524884,138.76,138.69,34.17524884]
[1741389524449,89.5061,138.77,138.69,190.29524884]
[1741389524653,34.17524884,138.76,138.69,190.29524884]
[1741389525176,4.10916583,138.75,138.7,7.2098]
[1741389525938,4.10916583,138.75,138.71,34.17524884]
[1741389526133,4.10916583,138.75,138.7,59.40954884]
[1741389526326,116.47524884,138.77,138.7,41.38504884]
[1741389526527,41.38194884,138.76,138.7,7.2098]
[1741389527054,34.17524884,138.76,138.7,7.2098]
[1741389527226,41.38184884,138.76,138.7,7.2098]
[1741389527645,34.17524884,138.76,138.7,7.2098]
[1741389529456,89.5064,138.77,138.7,7.2098]
[1741389529658,34.17524884,138.76,138.7,7.2098]
[1741389530368,116.47524884,138.77,138.7,59.40954884]
[1741389531439,4.11266136,138.76,138.7,59.40954884]
[1741389532350,4.11266136,138.76,138.71,34.17524884]
[1741389532556,4.11266136,138.76,138.72,25.2306]
[1741389533058,82.3,138.77,138.72,25.2306]
[1741389533443,82.3,138.77,138.72,59.40584884]
[1741389533855,82.3,138.77,138.73,34.17524884]
[1741389534060,82.3,138.77,138.72,215.50584884]
[1741389534364,82.3,138.77,138.74,7.2077]
[1741389535374,82.3,138.77,138.74,41.38294884]
[1741389535659,82.3,138.77,138.74,7.2077]
[1741389536566,82.3,138.77,138.74,41.38294884]
[1741389538972,82.3,138.77,138.74,7.2077]
[1741389540063,82.3,138.77,138.74,41.38294884]
[1741389540271,82.3,138.77,138.74,7.2077]
[1741389542368,34.17524884,138.75,138.72,156.1]
[1741389542674,82.3,138.76,138.72,163.3087]
[1741389543585,116.47524884,138.76,138.72,163.3087]
[1741389543743,82.3,138.76,138.72,7.2087]
[1741389544067,34.17524884,138.73,138.7,156.08]
[1741389544265,116.47524884,138.74,138.7,163.2897]
[1741389544570,82.3,138.74,138.7,197.46494884]
[1741389544871,82.3,138.77,138.72,34.17524884]
[1741389545067,82.3,138.77,138.73,34.17524884]
[1741389545773,82.3,138.77,138.71,34.17524884]
[1741389545950,82.3,138.77,138.72,34.17524884]
[1741389546273,82.3,138.77,138.7,181.3142]
[1741389546467,82.3,138.77,138.72,34.17524884]
[1741389546844,4.15822996,138.76,138.73,7.2082]
[1741389548476,82.3,138.77,138.73,7.2082]
[1741389548951,82.3,138.77,138.71,7.2092]
[1741389549274,82.3,138.77,138.72,34.17524884]
[1741389551378,82.3,138.77,138.73,7.2082]
[1741389551578,4.16289706,138.76,138.73,7.2082]
[1741389551874,4.16289706,138.76,138.73,41.38344884]
[1741389552076,82.3,138.83,138.75,48.67144884]
[1741389552254,12.4791,138.89,138.82,34.17524884]
[1741389552585,34.17524884,138.85,138.82,156.08]
[1741389552765,82.3,138.83,138.82,156.08]
[1741389553075,50.0,138.83,138.82,156.08]
[1741389553375,0.033,138.84,138.82,156.08]
[1741389553882,34.17524884,138.83,138.82,156.08]
[1741389554668,84.17524884,138.83,138.82,156.08]
[1741389555063,34.17524884,138.83,138.82,156.08]
[1741389555263,34.20824884,138.84,138.82,156.08]
[1741389555469,34.17524884,138.83,138.82,156.08]
[1741389557583,41.37824884,138.83,138.82,156.08]
[1741389557879,34.17524884,138.83,138.82,156.08]
[1741389558586,34.17524884,138.83,138.77,7.2059]
[1741389558886,34.17524884,138.82,138.76,7.2065]
[1741389559092,34.17524884,138.82,138.76,41.38174884]
[1741389559861,34.17524884,138.83,138.76,41.38174884]
[1741389560573,34.17524884,138.83,138.77,34.17524884]
[1741389561184,34.17524884,138.82,138.76,41.38174884]
[1741389561372,34.17524884,138.82,138.76,7.2065]
[1741389561883,34.17524884,138.82,138.76,41.38174884]
[1741389562090,82.3,138.82,138.77,34.17524884]
[1741389562259,82.3,138.82,138.78,34.17524884]
[1741389563372,82.3,138.82,138.79,7.2051]
[1741389564296,34.17524884,138.81,138.75,34.17524884]
[1741389564462,89.5035,138.82,138.75,34.20524884]
[1741389564463,116.47524884,138.82,138.75,34.20524884]
[1741389564663,116.47524884,138.82,138.76,34.17524884]
[1741389565177,82.3,138.81,138.75,34.20524884]
[1741389565385,116.47524884,138.81,138.75,41.41194884]
[1741389565887,34.17524884,138.76,138.75,0.03]
[1741389567086,42.29524884,138.79,138.75,0.03]
[1741389567292,82.3,138.78,138.75,0.03]
[1741389567662,82.3,138.78,138.75,34.20524884]
[1741389568179,82.3,138.78,138.75,0.03]
[1741389569374,82.3,138.78,138.75,41.41204884]
[1741389569571,8.12,138.81,138.76,34.17524884]
[1741389569783,82.3,138.83,138.78,34.17524884]
[1741389570496,82.3,138.83,138.79,34.17524884]
[1741389570882,82.3,138.83,138.76,12.6229]
[1741389571087,0.033,138.84,138.82,34.17524884]
[1741389571289,0.033,138.84,138.82,7.2034]
[1741389571590,0.033,138.84,138.8,34.17524884]
[1741389571977,0.033,138.84,138.81,34.17524884]
[1741389572176,0.033,138.84,138.79,25.2179]
[1741389572688,0.033,138.84,138.83,34.17524884]
[1741389573468,0.033,138.84,138.83,41.37824884]
[1741389574205,0.033,138.84,138.83,7.203]
[1741389574694,0.033,138.84,138.83,41.37824884]
[1741389575263,0.033,138.84,138.78,174.0531]
[1741389575490,0.033,138.84,138.81,34.17524884]
[1741389575694,0.033,138.84,138.82,34.17524884]
[1741389576074,0.033,138.84,138.81,34.17524884]
[1741389576701,0.033,138.84,138.82,34.17524884]
[1741389577589,0.033,138.84,138.83,34.17524884]
[1741389578090,0.033,138.84,138.82,34.17524884]
[1741389578469,0.033,138.84,138.79,25.2179]
[1741389578677,0.033,138.84,138.82,34.17524884]
[1741389579588,0.033,138.84,138.82,41.37834884]
[1741389580774,0.033,138.84,138.83,34.17524884]
[1741389581087,0.033,138.84,138.83,52.8248977]
[1741389581295,0.033,138.84,138.83,39.94181746]
[1741389581793,0.0001,138.84,138.83,47.14481746]
[1741389582000,0.0001,138.84,138.83,66.88370792]
[1741389582295,82.3,138.92,138.84,18.64964886]
[1741389582476,0.033,138.93,138.89,21.2921686]
[1741389583500,0.033,138.93,138.89,34.05174165]
[1741389583680,0.033,138.93,138.9,34.05174165]
[1741389583878,0.033,138.93,138.92,7.1983]
[1741389584385,0.033,138.93,138.92,41.25004165]
[1741389584779,0.033,138.93,138.92,53.79944165]
[1741389584979,0.033,138.94,138.93,18.64964886]
[1741389585178,0.0001,138.94,138.93,52.70139051]
[1741389585993,0.0001,138.94,138.93,59.89919051]
[1741389587395,0.033,138.97,138.93,77.89379051]
[1741389587599,0.033,138.97,138.96,34.05174165]
[1741389588003,0.033,138.97,138.96,41.24804165]
[1741389588191,0.033,138.97,138.93,41.24954165]
[1741389588396,0.033,138.94,138.89,164.1]
[1741389588592,0.033,138.94,138.9,7.1994]
[1741389589006,34.05174165,138.93,138.89,156.0]
[1741389589198,34.05174165,138.92,138.87,7.2007]
[1741389589394,34.05174165,138.91,138.86,7.2013]
[1741389589911,34.05174165,138.9,138.86,7.2013]
[1741389590081,34.05174165,138.9,138.85,7.2018]
[1741389590277,116.35174165,138.92,138.85,41.25354165]
[1741389590592,116.35174165,138.92,138.86,34.05174165]
[1741389590997,82.3,138.92,138.87,34.05174165]
[1741389591509,82.3,138.92,138.88,34.05174165]
[1741389591698,0.033,138.94,138.9,34.05174165]
[1741389591878,0.033,138.94,138.91,34.05174165]
[1741389594004,0.033,138.94,138.9,34.05174165]
[1741389594205,34.08474165,138.94,138.87,34.05174165]
[1741389594397,34.05174165,138.93,138.87,34.05174165]
[1741389594603,34.08474165,138.94,138.88,34.05174165]
[1741389595590,0.033,138.94,138.91,34.05174165]
[1741389595799,0.033,138.94,138.92,34.05174165]
[1741389595979,0.033,138.94,138.93,7.1978]
[1741389598089,0.033,138.94,138.91,34.05174165]
[1741389599191,0.033,138.94,138.92,34.05174165]
[1741389599392,0.033,138.94,138.91,34.05174165]
[1741389599610,0.033,138.94,138.9,34.05174165]
[1741389600224,0.033,138.94,138.91,41.25064165]
[1741389600509,0.033,138.94,138.93,0.03]
[1741389601115,0.033,138.94,138.93,34.08174165]
[1741389601821,0.033,138.94,138.93,52.73139051]
[1741389602115,0.033,138.94,138.93,59.92919051]
[1741389603326,0.033,138.94,138.93,41.27954165]
[1741389604297,0.033,138.94,138.93,0.03]
[1741389604494,0.033,138.94,138.93,7.2278]
[1741389605024,0.033,138.94,138.93,41.27954165]
[1741389606133,0.033,138.94,138.93,59.92919051]
[1741389606305,0.033,138.95,138.94,18.64964886]
[1741389606511,0.033,138.95,138.94,52.70139051]
[1741389607221,0.033,138.97,138.94,86.75313216]
[1741389607398,0.033,138.98,138.96,52.70139051]
[1741389607593,0.033,138.98,138.97,34.05174165]
[1741389607791,0.033,138.98,138.97,52.70139051]
[1741389608823,0.033,138.98,138.97,59.89709051]
[1741389609517,0.033,139.03,138.98,18.64964886]
[1741389609909,0.033,139.03,138.99,34.05174165]
[1741389610110,0.033,139.03,138.98,34.05174165]
[1741389610306,34.08474165,139.03,138.97,7.1957]
[1741389610520,82.333,139.02,138.97,7.1957]
[1741389610904,89.5262,139.02,138.96,41.24804165]
[1741389611228,0.033,139.02,139.01,34.05174165]
[1741389612025,0.033,139.02,139.0,34.05174165]
[1741389612226,0.033,139.02,138.97,157.84]
[1741389612397,0.033,139.02,139.01,34.05174165]
[1741389612607,0.033,139.02,138.99,34.05174165]
[1741389612815,0.033,139.02,138.97,155.84]
[1741389613125,0.033,139.02,138.99,34.05174165]
[1741389613513,0.033,139.02,138.98,41.24694165]
[1741389613720,82.333,139.02,138.98,41.24694165]
[1741389613902,82.333,139.02,138.98,7.1952]
[1741389614607,82.3,139.01,138.97,155.84]
[1741389614818,34.05174165,139.0,138.97,155.84]
[1741389615029,116.35174165,138.99,138.94,7.1972]
[1741389615406,34.05174165,138.98,138.94,7.1972]
[1741389615803,82.3,138.97,138.93,0.03]
[1741389616008,34.05174165,138.94,138.93,0.03]
[1741389616310,42.15174165,138.94,138.86,7.2013]
[1741389616506,34.05174165,138.91,138.85,41.25364165]
[1741389616703,34.05174165,138.92,138.85,41.25364165]
[1741389617424,78.1111,138.93,138.83,34.05174165]
[1741389617628,78.1111,138.93,138.81,6.0939]
[1741389617629,34.05174165,138.89,138.82,34.05174165]
[1741389618346,34.05174165,138.86,138.81,7.204]
[1741389619030,34.05174165,138.86,138.8,7.2346]
[1741389619228,34.05174165,138.84,138.8,0.03]
[1741389619432,34.05174165,138.85,138.8,0.03]
[1741389619618,34.05174165,138.82,138.8,0.03]
[1741389620019,12.6251,138.85,138.8,0.03]
[1741389620020,34.05174165,138.81,138.8,0.03]
[1741389621407,82.3,138.84,138.8,0.03]
[1741389621612,34.05174165,138.83,138.8,0.03]
[1741389622132,34.05174165,138.82,138.8,0.03]
[1741389623118,34.05174165,138.81,138.8,0.03]
[1741389624326,76.2034833,138.81,138.8,0.03]
[1741389624538,50.0,138.8,138.79,0.03]
[1741389624733,84.05174165,138.8,138.79,0.03]
[1741389624929,82.3,138.8,138.79,0.03]
[1741389625324,34.05174165,138.8,138.79,0.03]
[1741389625526,134.57,138.76,138.75,0.03]
[1741389625725,34.05174165,138.76,138.75,0.03]
[1741389625937,58.1,138.79,138.75,0.03]
[1741389625938,34.05174165,138.78,138.75,0.03]
[1741389626838,34.05174165,138.77,138.75,0.03]
[1741389627037,34.05174165,138.76,138.75,0.03]
[1741389627207,34.05174165,138.77,138.75,0.03]
[1741389627625,34.05174165,138.78,138.75,0.03]
[1741389627830,8.1,138.79,138.75,0.03]
[1741389627831,42.15174165,138.79,138.75,0.03]
[1741389629545,8.1,138.79,138.75,0.03]
[1741389629731,42.15174165,138.79,138.75,0.03]
[1741389630637,34.05174165,138.78,138.75,0.03]
[1741389630942,116.35174165,138.77,138.75,0.03]
[1741389631139,34.05174165,138.76,138.75,0.03]
[1741389633422,50.0,138.75,138.71,0.03]
[1741389633738,34.05174165,138.72,138.71,0.03]
[1741389637138,41.26044165,138.72,138.71,0.03]
[1741389637339,34.05174165,138.72,138.71,0.03]
[1741389638740,41.26044165,138.72,138.71,0.03]
[1741389639140,44.89414734,138.72,138.71,0.03]
[1741389642957,50.0,138.67,138.66,0.03]
[1741389643153,42.15174165,138.67,138.66,0.03]
[1741389643950,126.2034833,138.67,138.66,0.03]
[1741389644455,57.2129,138.64,138.63,0.03]
[1741389644657,91.26464165,138.64,138.63,0.03]
[1741389645958,34.05174165,138.65,138.63,0.03]
[1741389646367,34.05174165,138.64,138.63,0.03]
[1741389646657,51.24794281,138.64,138.56,41.26874165]
[1741389646842,25.2419,138.66,138.56,41.26874165]
[1741389646843,57.2122,138.66,138.57,34.05174165]
[1741389647047,60.84998158,138.66,138.58,34.05174165]
[1741389647357,34.05174165,138.64,138.58,34.05174165]
[1741389647741,34.05174165,138.64,138.58,41.26774165]